[Event "WTCC-50 2018"]
[Site "Radebeul"]
[Date "2018.07.12"]
[Round "6"]
[White "Luger, Jens"]
[Black "Sazonova, Elena N"]
[Result "0-1"]
[ECO "E91"]
[WhiteElo "1920"]
[BlackElo "2146"]
[Annotator "NA"]
[PlyCount "64"]
[EventDate "2018.07.07"]
[EventType "team-tourn"]
[EventCountry "GER"]
[SourceTitle "playchess.com"]
[Source "ChessBase"]
[SourceQuality "1"]
[TimeControl "40/5400+30:1800+30"]

1. d4 {[%emt 0:00:07]} Nf6 {[%emt 0:00:00]} 2. c4 {[%emt 0:00:19]} g6 {[%emt 0:00:00]} 3. Nc3 {[%emt 0:00:05]} Bg7 {[%emt 0:00:16]} 4. Nf3 {[%emt 0:01:16]} O-O {[%emt 0:00:19]} 5. e4 {[%emt 0:01:43]} d6 {[%emt 0:00:23]} 6. Be2 {[%emt 0:00:07]} Nbd7 {[%emt 0:02:22]} 7. O-O {[%emt 0:00:14]} e5 {[%emt 0:00:27]} 8. Be3 {[%emt 0:03:31]} Ng4 {[%emt 0:02:58]} 9. Bg5 {[%emt 0:03:31]} f6 {[%emt 0:00:30]} 10. Bd2 {[%emt 0:05:02]} c6 {[%emt 0:05:15]} 11. Rb1 {[%emt 0:14:17]} a5 {[%emt 0:08:04]} 12. a3 {[%emt 0:02:14]} Qe7 {[%emt 0:06:33]} 13. h3 {[%emt 0:04:21]} Nh6 {[%emt 0:00:14]} 14. Qc1 {[%emt 0:01:26]} Nf7 {[%emt 0:00:24]} 15. d5 {[%emt 0:02:01]} f5 {[%emt 0:12:20]} 16. b4 {[%emt 0:10:45]} axb4 {[%emt 0:03:46]} 17. axb4 {[%emt 0:00:05]} fxe4 {[%emt 0:00:50]} 18. Nxe4 {[%emt 0:01:43]} cxd5 {[%emt 0:00:19]} 19. cxd5 {[%emt 0:01:58]} Nb6 {[%emt 0:01:06]} 20. Be3 {[%emt 0:11:08]} Nxd5 {[%emt 0:02:59]} 21. Bc4 {[%emt 0:04:12]} Nxe3 {[%emt 0:08:26]} 22. Qxe3 {[%emt 0:03:30]} Be6 {[%emt 0:09:49]} 23. Bxe6 {[%emt 0:06:35]} Qxe6 {[%emt 0:00:37]} 24. Qb6 {[%emt 0:00:04]} Qd5 {[%emt 0:02:20]} 25. Qe3 {[%emt 0:03:10]} Qb5 {[%emt 0:06:58]} 26. Rfd1 {[%emt 0:05:06]} d5 {[%emt 0:15:43]} 27. Nc3 {[%emt 0:07:53]} d4 {[%emt 0:00:35]} 28. Qxd4 {[%emt 0:01:20]} Qc6 {[%emt 0:01:26]} 29. Qe3 {[%emt 0:01:55]} Ra3 {[%emt 0:01:01]} 30. Rd3 {[%emt 0:02:17]} Bh6 {[%emt 0:04:18]} 31. Nxe5 {[%emt 0:02:20]} Nxe5 {[%emt 0:00:41]} 32. Qxe5 {[%emt 0:00:09]} Bg7 {[%emt 0:00:03]} 0-1